Cogmind - Beta 14 @@@ ROGUE MODE // 2024.10.27 @ 19:37:15 Player: KURIIRI Result: Self-destructed Performance ------------- Evolutions (2) 1000 Regions Visited (5) 1000 Robots Destroyed (42) 210 Value Destroyed (1112) 1112 Prototype IDs (25) 500 Alien Tech Used (0) 0 Bonus (183) 183 TOTAL SCORE: 4005 Bonus ------- Aligned with FarCom 300 Friendly Fire -117 Cogmind --------- Core Integrity 550/550 Matter 197/300 Energy 100/100 System Corruption 0% Temperature Cool (0) Movement Treading (160) Location -8/Materials Parts ------- > --- POWER (1) -------- (None) > --- PROPULSION (2) --- Light Treads Light Treads > --- UTILITY (2) ------ Large Storage Unit Hacking Suite > --- WEAPON (6) ------- Rocket Launcher Rocket Launcher > --- INVENTORY (15) --- Nuclear Core Fission Core Fission Core Light Treads Armored Wheel Combat Airjet Heat Sink High-capacity Storage Unit Experimental Sensor Array Light EM Pulse Cannon Beam Cannon Guided Plasma Cannon Assault Rifle Datajack Maul Peak State ------------ > --- POWER ------------ (None) > --- PROPULSION ------- Light Treads Combat Airjet > --- UTILITY ---------- Large Storage Unit Hacking Suite > --- WEAPON ----------- Rocket Launcher Rocket Launcher > --- INVENTORY -------- Nuclear Core Fission Core Fission Core Light Treads Light Treads Armored Wheel Heat Sink High-capacity Storage Unit Experimental Sensor Array Light EM Pulse Cannon Beam Cannon Guided Plasma Cannon Assault Rifle Datajack Maul [Rating: 18] Favorites ----------- Power Light Ion Engine Engine Light Ion Engine Propulsion Light Treads Treads Light Treads Hover Unit Combat Airjet Utility Large Storage Unit Device Heat Sink Storage Large Storage Unit Hackware Hacking Suite Weapon Light EM Pulse Cannon Energy Gun EM Pulse Gun Energy Cannon Light EM Pulse Cannon Ballistic Gun Assault Rifle Launcher Rocket Launcher Build | -11 -10 -10 -10 -9 -8 ------- Run | Yrd Mat Min Exi Min Mat Slots Evolved 4 | . . . . . 4 Power . | . . . . . . Propulsion . | . . . . . . Utility . | . . . . . . Weapon 4 | . . . . . 4 Parts Attached 30 | 6 13 6 . 5 . Power 3 | 1 1 1 . . . Engine 3 | 1 1 1 . . . Core . | . . . . . . Reactor . | . . . . . . Propulsion 8 | 2 3 1 . 2 . Treads 7 | 2 3 1 . 1 . Leg . | . . . . . . Wheel . | . . . . . . Hover 1 | . . . . 1 . Flight . | . . . . . . Utility 4 | 1 2 . . 1 . Device 1 | . 1 . . . . Storage 2 | 1 1 . . . . Processor . | . . . . . . Hackware 1 | . . . . 1 . Protection . | . . . . . . Artifact . | . . . . . . Weapon 15 | 2 7 4 . 2 . Energy Gun 3 | 1 2 . . . . Energy Cannon 6 | . 4 2 . . . Ballistic Gun 2 | 1 . 1 . . . Ballistic Cannon . | . . . . . . Launcher 4 | . 1 1 . 2 . Special Weapon . | . . . . . . Impact Weapon . | . . . . . . Slashing Weapon . | . . . . . . Piercing Weapon . | . . . . . . Special Melee Weapon . | . . . . . . Unidentified Prototypes . | . . . . . . Corrupted Parts 2 | . . . . 2 . System Corruption 11 | . . . . 11 . Parts Lost 5 | . . 4 . 1 . Power 2 | . . 1 . 1 . Propulsion 1 | . . 1 . . . Utility . | . . . . . . Weapon 2 | . . 2 . . . Highest Loss Streak 4 | . . 4 . 1 . To Critical Strikes . | . . . . . . Average Slot Usage (%) 93 | . 93 81 100 97 . Engine 13 | . 14 13 14 11 . Treads 26 | . 27 21 28 28 . Device 11 | . 8 14 14 13 . Storage 14 | . 14 14 14 14 . Energy Gun 2 | . 6 . . . . Energy Cannon 15 | . 20 9 14 11 . Ballistic Gun 5 | . . 6 14 11 . Launcher 1 | . . . . 4 . Peak Build Rating 18 | 6 11 11 12 18 . Average Rating 10 | 4 9 8 11 12 . On Entrance 8 | . 6 11 10 12 14 Naked Turns . | . . . . . . Heaviest Build 34 | 12 34 34 30 30 . Greatest Support 40 | 40 40 40 40 40 . Greatest Overweight (x) 1 | . . 1 . . . Average Overweight (x) . | . . . . . . Largest Inventory Capacity 15 | 8 15 15 15 15 . Average Capacity 14 | 6 14 15 15 15 . Most Carried 15 | 1 15 15 15 15 . Average Carried 12 | . 10 12 14 15 . Final Capacity 15 | 8 15 15 15 15 15 Final Carried 15 | 1 15 11 15 15 15 Class Distribution -------------------- 94% | Mutant 5% | Scavenger-Mutant Dominant Class ---------------- Mutant | -10/Materials Mutant | -10/Mines Mutant | -10/Exiles Mutant | -9/Mines Mutant | -8/Materials Resources | -11 -10 -10 -10 -9 -8 ----------- Run | Yrd Mat Min Exi Min Mat Matter Collected 505 | 219 177 101 . 8 . Remotely . | . . . . . . Salvage Created 1415 | . 1118 209 . 88 . Parts 87 | . 63 5 . 19 . Haulers Intercepted 2 | . 2 . . . . Recyclers Shooed . | . . . . . . Parts Field Recycled . | . . . . . . Retrieved Matter . | . . . . . . Parts Self-Destructed . | . . . . . . Prevented . | . . . . . . Kills | -11 -10 -10 -10 -9 -8 ------- Run | Yrd Mat Min Exi Min Mat Combat Hostiles Destroyed 38 | . 20 12 . 6 . Guns 3 | . 3 . . . . Cannons 17 | . 12 5 . . . AOE 16 | . 3 7 . 6 . Classes Destroyed 10 | . 5 3 . 2 . Builder 4 | . 2 . . 2 . Tunneler 1 | . . . . 1 . Hauler 2 | . 2 . . . . Operator 1 | . 1 . . . . Watcher 3 | . 3 . . . . Swarmer 6 | . . . . 6 . Grunt 23 | . 20 3 . . . Demolisher 1 | . . 1 . . . Assembled 8 | . . 8 . . . Guerrilla 1 | . . 1 . . . Best Kill Streak 11 | . 5 11 . 9 . Combat Bots Only 11 | . 4 11 . 6 . Max Kills in Single Turn 6 | . 2 5 . 6 . Gunslinging 1 | . 1 . . . . Exploded 4 | . 2 4 . 3 . Melee . | . . . . . . Uniques/NPCs Destroyed . | . . . . . . Combat | -11 -10 -10 -10 -9 -8 -------- Run | Yrd Mat Min Exi Min Mat Hostile Shots Fired 110 | . 62 31 . 17 . Missed 35 | . 23 8 . 4 . Damage Taken 1105 | . 512 495 . 98 . Core 128 | . 53 68 . 7 . Absorbed by Shields . | . . . . . . Core Remaining (%) 74 | 100 . . . 48 . Volleys Fired 65 | . 48 14 . 3 . Largest 2 | . 2 2 . 2 . Hottest 112 | . 112 112 . 66 . Shots Fired 122 | . 95 21 . 6 . Gun 32 | . 30 2 . . . Cannon 78 | . 64 14 . . . Launcher 12 | . 1 5 . 6 . Special . | . . . . . . Kinetic 2 | . . 2 . . . Thermal . | . . . . . . Explosive 12 | . 1 5 . 6 . Electromagnetic 108 | . 94 14 . . . Robot Hit Streak 14 | . 10 14 . 3 . Robot Miss Streak 4 | . 4 2 . . . Penetration Max . | . . . . . . Secondary Targets 1 | . 1 . . . . Max Gunslinging Chain 1 | . 1 . . . . Shots Hit Robots 69 | . 53 15 . 1 . Core Hits 64 | . 31 21 . 12 . Critical Kills . | . . . . . . Critical Parts Destroyed . | . . . . . . Critical Strikes 1 | . . 1 . . . Corrupt 1 | . . 1 . . . Melee Attacks . | . . . . . . Impact . | . . . . . . Slashing . | . . . . . . Piercing . | . . . . . . Sneak Attacks . | . . . . . . Combat Hostiles . | . . . . . . Follow-up Attacks . | . . . . . . Damage Inflicted 2830 | . 1566 807 . 457 . Guns 280 | . 268 12 . . . Cannons 1160 | . 932 228 . . . Explosions 1375 | . 358 567 . 450 . Melee . | . . . . . . Ramming 15 | . 8 . . 7 . Kinetic 12 | . . 12 . . . Thermal 358 | . 358 . . . . Explosive 1017 | . . 567 . 450 . Electromagnetic 1428 | . 1200 228 . . . Impact . | . . . . . . Slashing . | . . . . . . Piercing . | . . . . . . Highest Corruption 11 | . . . . 11 . Average Corruption 7 | . . . . 7 . Corruption Purged . | . . . . . . Corruption Blocked . | . . . . . . Overload Shots . | . . . . . . Overflow Damage 50 | . 10 15 . 25 . Projectiles 20 | . 10 10 . . . Explosions 30 | . . 5 . 25 . Melee . | . . . . . . Knockbacks . | . . . . . . Impact . | . . . . . . Kinetic . | . . . . . . Secondary . | . . . . . . Self-Inflicted Damage 35 | . 35 . . . . Shots 1 | . 1 . . . . Rammed 3 | . 1 1 . 1 . Targets Rammed 3 | . 1 1 . 1 . Kicked . | . . . . . . Crushed . | . . . . . . Highest Temperature 303 | . 303 138 . . . Average Temperature 56 | . 58 48 . . . Received Heat Transfer 365 | . 300 65 . . . Siege Activations . | . . . . . . Robots Corrupted 2 | . 2 . . . . Combat Hostiles 2 | . 2 . . . . Parts Fried 11 | . 11 . . . . Impact Corruptions . | . . . . . . Robots Melted . | . . . . . . Combat Hostiles . | . . . . . . Parts Melted 1 | . . 1 . . . Heat Transferred 550 | . 550 . . . . Parts Sabotaged . | . . . . . . Parts Stolen . | . . . . . . Parts Stripped . | . . . . . . Power Chain Reactions 4 | . 4 . . . . Alert | -11 -10 -10 -10 -9 -8 ------- Run | Yrd Mat Min Exi Min Mat Peak Influence 454 | . 454 269 . 200 . Initial 177 | . . 177 . . 78 Average 151 | . 201 249 . 26 . Maximum Alert Level 2 | . 2 1 . 1 . Low Security (%) 54 | 100 47 . . 89 . Level 1 43 | . 47 100 . 10 . Level 2 2 | . 5 . . . . Level 3 . | . . . . . . Level 4 . | . . . . . . Level 5 . | . . . . . . High Security . | . . . . . . Max Security . | . . . . . . Squads Dispatched 7 | . 7 . . . . Investigation 7 | . 7 . . . . Extermination . | . . . . . . Reinforcement . | . . . . . . Assault . | . . . . . . Garrison . | . . . . . . Intercept . | . . . . . . Searches Triggered . | . . . . . . Construction Impeded . | . . . . . . Haulers Reinforced . | . . . . . . Active Scanning Responses . | . . . . . . Cargo Convoy Interrupts . | . . . . . . Stealth | -11 -10 -10 -10 -9 -8 --------- Run | Yrd Mat Min Exi Min Mat Distress Signals . | . . . . . . Communications Jammed . | . . . . . . Distress Signals . | . . . . . . Times Spotted 49 | . 23 21 . 5 . Peak Tracking Total 12 | . 4 12 . 4 . Tactical Retreats 2 | . 1 1 . . . Traps | -11 -10 -10 -10 -9 -8 ------- Run | Yrd Mat Min Exi Min Mat Traps Triggered 1 | . 1 . . . . Indirectly . | . . . . . . Trap Hack Attempts . | . . . . . . Triggered . | . . . . . . Disarmed . | . . . . . . Reprogrammed . | . . . . . . Reused . | . . . . . . Traps Extracted . | . . . . . . Installed . | . . . . . . Triggered . | . . . . . . Machines | -11 -10 -10 -10 -9 -8 ---------- Run | Yrd Mat Min Exi Min Mat Machines Disabled 8 | . 8 . . . . Max in Single Turn 3 | . 3 . . . . Machines Repaired . | . . . . . . Machines Dismantled . | . . . . . . Machines Sabotaged . | . . . . . . Overloaded Fab Kills . | . . . . . . Hacking | -11 -10 -10 -10 -9 -8 --------- Run | Yrd Mat Min Exi Min Mat Machines Accessed 13 | . 10 . 2 1 . Terminals 8 | . 8 . . . . Fabricators . | . . . . . . Repair Stations 1 | . 1 . . . . Recycling Units 1 | . 1 . . . . Scanalyzers . | . . . . . . Garrison Access . | . . . . . . Total Hacks 28 | . 25 . 2 1 . Successful 14 | . 11 . 2 1 . Failed 13 | . 13 . . . . Catastrophic . | . . . . . . Database Lockouts 1 | . 1 . . . . Manual 15 | . 14 . 1 . . Terminals 22 | . 22 . . . . Fabricators . | . . . . . . Repair Stations 2 | . 2 . . . . Recycling Units 1 | . 1 . . . . Scanalyzers . | . . . . . . Garrison Access . | . . . . . . Terminal Hacks 8 | . 5 . 2 1 . Record 1 | . . . 1 . . Robot Analysis 2 | . 2 . . . . Prototype ID Bank 1 | . 1 . . . . Open Door 1 | . . . . 1 . Emergency Access Points 1 | . 1 . . . . Locate Traps 1 | . 1 . . . . Derelict Proto ID Bank 1 | . . . 1 . . Fabricator Hacks . | . . . . . . Repair Station Hacks 2 | . 2 . . . . Scan Component 1 | . 1 . . . . Repair 1 | . 1 . . . . Recycling Unit Hacks . | . . . . . . Scanalyzer . | . . . . . . Garrison Access Hacks . | . . . . . . Unauthorized Hacks 4 | . 4 . . . . Terminals 3 | . 3 . . . . Botnet 2 | . 2 . . . . Operators 1 | . 1 . . . . Fabricators . | . . . . . . Repair Stations . | . . . . . . Recycling Units 1 | . 1 . . . . Tunnel 1 | . 1 . . . . Scanalyzers . | . . . . . . Garrison Access . | . . . . . . Data Cores Recovered 1 | . 1 . . . . Used . | . . . . . . Hacking Detections 7 | . 7 . . . . Full Trace Events 6 | . 6 . . . . Feedback Events . | . . . . . . Feedback Blocked . | . . . . . . Robot Schematics Acquired . | . . . . . . Robots Built . | . . . . . . Authchips . | . . . . . . Time . | . . . . . . Total Robot Build Rating . | . . . . . . Part Schematics Acquired . | . . . . . . Parts Built . | . . . . . . Authchips . | . . . . . . Time . | . . . . . . Total Part Build Rating . | . . . . . . Parts Repaired . | . . . . . . Time 26 | . 26 . . . . Parts Recycled . | . . . . . . Recycled Matter . | . . . . . . Retrieved Matter . | . . . . . . Retrieved Components . | . . . . . . Parts Scanalyzed . | . . . . . . Part Schematics Acquired . | . . . . . . Parts Damaged . | . . . . . . Bothacking | -11 -10 -10 -10 -9 -8 ------------ Run | Yrd Mat Min Exi Min Mat Used RIF Installer . | . . . . . . Robots Hacked . | . . . . . . Non-combat . | . . . . . . Combat . | . . . . . . Robot Hacks Applied . | . . . . . . Relay Couplers Released . | . . . . . . Fabnet Peak Effective % . | . . . . . . Robots Rewired . | . . . . . . Allies Hacked . | . . . . . . Hacks Repelled . | . . . . . . Allies | -11 -10 -10 -10 -9 -8 -------- Run | Yrd Mat Min Exi Min Mat Total Allies . | . . . . . . Largest Group . | . . . . . . Highest-Rated Group . | . . . . . . Highest-Rated Ally . | . . . . . . Total Orders . | . . . . . . Ally Attacks . | . . . . . . Total Damage . | . . . . . . Kills . | . . . . . . Allies Corrupted . | . . . . . . Allies Melted . | . . . . . . Intel | -11 -10 -10 -10 -9 -8 ------- Run | Yrd Mat Min Exi Min Mat Robot Analysis Total 2 | . 2 . . . . Derelict Logs Recovered 3 | . . 1 . 2 . Drone Launches . | . . . . . . Drone Recoveries . | . . . . . . Exploration | -11 -10 -10 -10 -9 -8 ------------- Run | Yrd Mat Min Exi Min Mat Turns Passed 2642 | 73 1193 363 328 685 . Spaces Moved 1381 | 45 565 164 203 404 . Core 7 | 7 . . . . . Treads 1374 | 38 565 164 203 404 . Legs . | . . . . . . Wheels . | . . . . . . Hover . | . . . . . . Flight . | . . . . . . Fastest Speed 50 | 50 160 160 160 160 . Average Speed 162 | 142 160 189 160 160 . Slowest Speed 240 | 160 160 240 160 160 . Overloaded Moves . | . . . . . . Propulsion Burnouts . | . . . . . . Robots Hopped . | . . . . . . Cave-ins Triggered . | . . . . . . Exploration Rate (%) 51 | 4 89 29 58 76 . Regions Visited 5 Branch Regions 3 Pre-discovered Areas 4 | . 1 1 1 1 . Known Exits Taken . | . . . . . . Unknown Exits Taken 5 | 1 1 1 1 1 . Scrap Searched . | . . . . . . Spaces Dug 28 | . . . . 28 . Terrain Destroyed 191 | . 78 38 . 75 . Melee . | . . . . . . Projectile . | . . . . . . AOE 191 | . 78 38 . 75 . Terrain Rammed . | . . . . . . Walls Destroyed . | . . . . . . Machines Disabled . | . . . . . . Actions | -11 -10 -10 -10 -9 -8 --------- Run | Yrd Mat Min Exi Min Mat Total 1643 | 51 758 194 206 434 . Wait 137 | . 110 8 . 19 . Move 1376 | 44 564 163 202 403 . Hop . | . . . . . . Pick Up 21 | 1 14 1 4 1 . Fast Attach 11 | 6 5 . . . . Attach 6 | . 2 4 . . . Detach 2 | . 2 . . . . Swap 13 | . 6 2 . 5 . Drop 8 | . 6 1 . 1 . Fire 65 | . 48 14 . 3 . Melee . | . . . . . . Ram . | . . . . . . Kick . | . . . . . . Crush 3 | . 1 1 . 1 . Escape Stasis . | . . . . . . Rewire 1 | . . . . 1 . Trap . | . . . . . . Miscellaneous . | . . . . . . Route ------- -11/Scrapyard -10/Materials (discovered 4 exits: [*Mat x3] / [*Min]) -10/Mines (discovered 2 exits: [*Mat] / *Exi) -10/Exiles -9/Mines -8/Materials History --------- Turn | Location | Event 6 | -11/Scrapyard | Discovered new exit (range 16) 74 | -11/Scrapyard | Entered Materials 179 | -10/Materials | Discovered new exit (range 14) 307 | -10/Materials | Build established: Mutant 482 | -10/Materials | Discovered new exit (range 15) 694 | -10/Materials | Central database locked down 995 | -10/Materials | Discovered new exit (range 11) 1184 | -10/Materials | Discovered new exit (range 16) 1267 | -10/Materials | Entered Mines 1268 | -10/Mines | Assembled infested the area 1273 | -10/Mines | Assisted by a Guerilla fighting off Assembled 1336 | -10/Mines | Destroyed 11 combat bots 1359 | -10/Mines | Lost 4 parts (1p1n2w) 1521 | -10/Mines | Learned Materials garrison access intel 1525 | -10/Mines | Discovered new exit (range 6) 1624 | -10/Mines | Deemed a non-threat by the Exiles lab entrance 1624 | -10/Mines | Discovered new exit (range 5) 1630 | -10/Mines | Entered Exiles 1678 | -10/Exiles | Met 8R-AWN 1702 | -10/Exiles | Met EX-HEX 1744 | -10/Exiles | Met EX-BIN 1763 | -10/Exiles | Aligned with FarCom system 1765 | -10/Exiles | Given EX-Vault access code 1801 | -10/Exiles | Opened EX-Vault 1809 | -10/Exiles | Found Gui. Plasma Cannon 1842 | -10/Exiles | Warned to stay clear of 0b10 Research branches 1889 | -10/Exiles | Met EX-DEC 1895 | -10/Exiles | Learned location of Zion (-6) 1945 | -10/Exiles | Discovered new exit (range 10) 1958 | -10/Exiles | Left Exiles lab with Gui. Plasma Cannon 1958 | -10/Exiles | Entered Mines 2148 | -9/Mines | Learned 4 Materials zone layouts 2295 | -9/Mines | Found a damaged Exp. Sensor Array with a note attached 2310 | -9/Mines | Found Prototype Device 2554 | -9/Mines | Core integrity fell below 50% 2615 | -9/Mines | Found the Drone Emporium 2630 | -9/Mines | Discovered new exit (range 6) 2641 | -9/Mines | System corruption reached 10% 2643 | -9/Mines | Entered Materials 2643 | -8/Materials | Evolved 4 slots: Weapon x4 2643 | -8/Materials | Self-destructed Last Messages --------------- >>Open Door Sealed Doors opened. 02615_ H6-CH3(g): "Well that was anticlimactic. Heard you outside and thought you were from the Merchants Guild. I haven't even officially opened my Drone Emporium yet but am totally ready to tell them where they can shove that C&D." 02615_ U-05 Engineer builds a Wall. 02617_ H6-CH3(g): "I'm a fan of the free market. Free drones for all! No strings attached!" 02624_ U-05 Engineer lays Concrete. 02625_ U-05 Engineer builds a Wall. 02630_ EXIT=FOUND 02638_ Integrated Corrupted Hacking Suite (+3). 02640_ Integrated Corrupted Cmb. Airjet (+8). PARAMETERS=WEAPON+4 LOCATION=UNKNOWN GOAL=ESCAPE 02643_ Receiving FarCom transmissions... Map ----- +----------------------------------------------------+ | | | | | | | | | | | | | | | | | | | | | | | | | | | | | | | | | | | ?????????????????????????????????????????????????? | | ?????????????????????????????????????????????????? | | ?????????????????????????????????????????????????? | | ?????????????????????????????????????????????????? | | ?????????????????????????????????????????????????? | | ?????????????????????????????????????????????????? | | ???????????????????????#####?????????????????????? | | ???????????????????????# #?????????????????????? | | ???????????????????????# @ #?????????????????????? | | ???????????????????????# #?????????????????????? | | ???????????????????????# #?????????????????????? | | ???????????????????????# ?????????????????????? | | ???????????????????????# ????????????????????? | | ???????????????????????# ???????????????????? | | ???????????????????????#######???????????????????? | | ?????????????Y?????????Y?????????????????????????? | | ?????????????????????????????????????????????????? | | ?????????????????????????????????????????????????? | | ?????????????????????????????????????????????????? | | ?????????????????????????????????????????????????? | | ?????????????????????????????????????????????????? | | ?????????????????????????????????????????????????? | | ?????????????????????????????????????????????????? | | ?????????????????????????????????????????????????? | | ????????????????????????s????????????????????????? | | ?????????????????????????????????????????????????? | | ?????????????????????????????????????????????????? | | ?????????????????????????????????????????????????? | | ?????????????????????????????????????????????????? | | ?????????????????????????????????????????????????? | | ?????????????????????????????????????????????????? | | ?????????????????????????????????????????????????? | | ?????????????????????????????????????????????????? | +----------------------------------------------------+ Best States ------------- Heat Dissipation 35 Energy Generation 10 Energy Capacity 250 Matter Stores 300 Matter Capacity 300 Sight Range 16 Terrain Scan Density 10 Evasion (%) 40 Recoil Reduction 2 Offensive Hacking 10 Item Schematics ----------------- None Robot Schematics ------------------ None Fabricated ------------ Nothing Alien Tech Used ----------------- None Achievements -------------- None Challenges ------------ None Game ------ Seed CoolingMultinovaNanovents Manual? 0 Play Time 00:20:50 Cumulative 148.4 hours Start 2024.10.27 @ 18:18:52 End 2024.10.27 @ 19:37:15 Sessions 3 Manual Loads 0 Difficulty Rogue Special Mode None Game No. 95 Rogue 59 Adventurer 36 Explorer 0 Win Type - Total 3 Types 2/0/0/1/0/0/0/0/0 Lore% 55 Gallery% 63 Achievement% 55 Wizard Run 0 Options --------- Layout 1 ASCII 0 Keyboard 0 Movement Numpad Keybinds 0 Fullscreen 1 Font 48/Smallcaps Map View 50x35 Zoom Use 0% Tactical HUD 1 Map Filters NONE Filters NONE Steam 1 RUN: 60909404-5c3d-4791-b7ef-d99f6826dc15